Cogmind - Beta 17 @@@ ROGUE MODE // 2026.07.12 @ 11:41:50 Player: Nerf Result: Destroyed by G-34 Mercenary with Small Laser Performance ------------- Evolutions (0) 0 Regions Visited (1) 200 Robots Destroyed (29) 145 Value Destroyed (398) 398 Prototype IDs (3) 60 Alien Tech Used (0) 0 Bonus (0) 0 TOTAL SCORE: 803 Bonus ------- None Cogmind --------- Core Integrity 0/250 Matter 298/300 Energy 98/100 System Corruption 2% Temperature Warm (198) Movement Rolling (100) Location -10/Materials Parts ------- > --- POWER (1) -------- (None) > --- PROPULSION (2) --- Compact Wheel Compact Wheel > --- UTILITY (2) ------ Targeting Computer Weapon Shielding > --- WEAPON (2) ------- Particle Gun Light Assault Rifle > --- INVENTORY (5) ---- Ion Engine Terrain Scanner Improved Terrain Scanner Tractor Beam Mining Laser Peak State ------------ > --- POWER ------------ Light Nuclear Core > --- PROPULSION ------- Compact Wheel Compact Wheel > --- UTILITY ---------- Improved Terrain Scanner Terrain Scan Processor > --- WEAPON ----------- Particle Gun Light Assault Rifle > --- INVENTORY -------- Ion Engine Medium Matter Pod Utility Shielding Tractor Beam Mining Laser [Rating: 13] Favorites ----------- Power Ion Engine Engine Ion Engine Power Core Light Nuclear Core Propulsion Light Treads Treads Light Treads Wheel Compact Wheel Utility Seismic Detector Device Seismic Detector Storage Small Storage Unit Processor Targeting Computer Protection Utility Shielding Weapon Medium Laser Energy Gun Medium Laser Ballistic Gun Light Assault Rifle Build | -11 -10 ------- Run | Yrd Mat Slots Evolved . | . . Power . | . . Propulsion . | . . Utility . | . . Weapon . | . . Parts Attached 21 | 8 13 Power 2 | 1 1 Engine 1 | 1 . Core 1 | . 1 Reactor . | . . Propulsion 4 | 2 2 Treads 2 | 2 . Leg . | . . Wheel 2 | . 2 Hover . | . . Flight . | . . Utility 9 | 3 6 Device 3 | 2 1 Storage 2 | 1 1 Processor 2 | . 2 Hackware . | . . Protection 2 | . 2 Artifact . | . . Weapon 6 | 2 4 Energy Gun 5 | 2 3 Energy Cannon . | . . Ballistic Gun 1 | . 1 Ballistic Cannon . | . . Launcher . | . . Special Weapon . | . . Impact Weapon . | . . Slashing Weapon . | . . Piercing Weapon . | . . Special Melee Weapon . | . . Unidentified Prototypes . | . . Corrupted Parts 1 | . 1 System Corruption 2 | . 2 Parts Lost 4 | . 4 Power 1 | . 1 Propulsion 2 | . 2 Utility . | . . Weapon 1 | . 1 Highest Loss Streak 2 | . 2 To Critical Strikes . | . . Average Backups 4 | 3 4 Power . | . 1 Propulsion . | . . Utility 1 | 1 2 Weapon 1 | 1 1 Tool/Special . | . . Unused Backups 3 | . 3 Power 1 | . 1 Propulsion . | . . Utility 1 | . 1 Weapon 1 | . 1 Tool/Special . | . . Average Slot Usage (%) 88 | . 88 Engine 4 | . 4 Core 9 | . 9 Treads 9 | . 9 Wheel 11 | . 11 Device 18 | . 18 Storage 1 | . 1 Processor 1 | . 1 Protection 4 | . 4 Energy Gun 20 | . 20 Ballistic Gun 5 | . 5 Peak Build Rating 13 | 9 13 Average Rating 8 | 6 9 On Entrance 4 | . 9 Avg Prop Armor Cover (%) . | . . Naked Turns . | . . Heaviest Build 15 | 15 13 Greatest Support 40 | 40 40 Greatest Overweight (x) 4 | . 4 Average Overweight (x) . | . . Largest Inventory Capacity 8 | 8 5 Average Capacity 5 | 7 5 Most Carried 5 | 5 5 Average Carried 4 | 3 4 Final Capacity 5 | 5 5 Final Carried 5 | 5 5 Class Distribution -------------------- 78% | Mutant 21% | Scavenger-Mutant Dominant Class ---------------- Mutant | -10/Materials Resources | -11 -10 ----------- Run | Yrd Mat Matter Collected 751 | 377 374 Remotely . | . . Salvage Created 928 | 310 618 Parts 69 | 37 32 Haulers Intercepted 1 | . 1 Recyclers Shooed 7 | . 7 Parts Field Recycled . | . . Retrieved Matter . | . . Parts Self-Destructed . | . . Prevented . | . . Parts Restored . | . . Kills | -11 -10 ------- Run | Yrd Mat Combat Hostiles Destroyed 9 | . 9 Guns 8 | . 8 Classes Destroyed 8 | 3 5 Worker 3 | 2 1 Builder 2 | . 2 Tunneler 9 | 9 . Hauler 1 | . 1 Recycler 3 | 1 2 Watcher 2 | . 2 Swarmer 3 | . 3 Grunt 6 | . 6 Best Kill Streak 5 | 5 4 Combat Bots Only 3 | . 3 Max Kills in Single Turn 2 | 1 2 Gunslinging 1 | . 1 Exploded . | . . Melee . | . . Uniques/NPCs Destroyed . | . . Combat | -11 -10 -------- Run | Yrd Mat Hostile Shots Fired 93 | . 93 Missed 19 | . 19 Hits 74 | . 74 Projectile 74 | . 74 Critical Strikes 2 | . 2 Damage Taken 832 | . 832 Core 256 | . 256 Absorbed by Shields . | . . Redirected to Shielding 15 | . 15 Core Remaining (%) 100 | 100 . Volleys Fired 134 | 32 102 Largest 2 | 1 2 Hottest 130 | 40 130 Shots Fired 199 | 32 167 Gun 199 | 32 167 Cannon . | . . Launcher . | . . Special . | . . Kinetic 33 | . 33 Thermal 109 | . 109 Explosive . | . . Electromagnetic 57 | 32 25 Robot Hit Streak 12 | 7 12 Robot Miss Streak 8 | 2 8 Penetration Max . | . . Secondary Targets 2 | . 2 Max Gunslinging Chain 1 | . 1 Shots Hit Robots 101 | 22 79 Core Hits 41 | 13 28 Critical Kills . | . . Critical Parts Destroyed . | . . Critical Strikes 2 | . 2 Burn 2 | . 2 Melee Attacks . | . . Impact . | . . Slashing . | . . Piercing . | . . Sneak Attacks . | . . Combat Hostiles . | . . Follow-up Attacks . | . . Damage Inflicted 1554 | 370 1184 Guns 1386 | 301 1085 Cannons . | . . Explosions 159 | 69 90 Melee . | . . Ramming 9 | . 9 Kinetic 103 | . 103 Thermal 914 | 69 845 Explosive . | . . Electromagnetic 528 | 301 227 Impact . | . . Slashing . | . . Piercing . | . . Highest Corruption 2 | . 2 Average Corruption 2 | . 2 Corruption Purged . | . . Corruption Blocked . | . . Effects 2 | . 2 Message Errors 1 | . 1 Heat Flow Errors 1 | . 1 Overload Shots . | . . Overflow Damage 16 | 16 . Projectiles . | . . Explosions 16 | 16 . Melee . | . . Knockbacks . | . . Impact . | . . Kinetic . | . . Secondary . | . . Self-Inflicted Damage . | . . Shots . | . . Rammed 5 | . 5 Targets Rammed 5 | . 5 Kicked . | . . Crushed . | . . Highest Temperature 726 | . 726 Average Temperature 190 | . 190 Received Heat Transfer 285 | . 285 Effects 31 | . 31 Shutdowns 6 | . 6 Energy Bleed 1 | . 1 Interference 6 | . 6 Matter Decay 4 | . 4 Short Circuit 3 | . 3 Damage (minor) 5 | . 5 Damage (major) 4 | . 4 Damage (core) 2 | . 2 Siege Activations . | . . Martial Activations . | . . Shielding Activations . | . . Robots Disrupted . | . . Combat Hostiles . | . . Robots Corrupted . | . . Combat Hostiles . | . . Parts Fried . | . . Impact Corruptions . | . . Robots Melted 1 | . 1 Combat Hostiles 1 | . 1 Parts Melted 5 | 1 4 Heat Transferred 2383 | 100 2283 Parts Sabotaged . | . . Parts Stolen . | . . Parts Stripped . | . . Power Chain Reactions 3 | 2 1 Alert | -11 -10 ------- Run | Yrd Mat Maximum Alert Level . | . . Low Security (%) 100 | 100 100 Level 1 . | . . Level 2 . | . . Level 3 . | . . Level 4 . | . . Level 5 . | . . High Security . | . . Max Security . | . . Peak Influence 135 | 15 135 Initial . | . . Average 43 | 2 61 Influence Increases 386 | 60 326 Destroy 0b10 Robot/C 180 | . 180 Destroy 0b10 Robot/NC 100 | 60 40 Destroy Leader 56 | . 56 Successful Hack 29 | . 29 Disable Machine 15 | . 15 Destroy Structure 6 | . 6 Influence Decreases 383 | 60 323 Time Decay 343 | 60 283 Lost Part 40 | . 40 Squads Dispatched 3 | . 3 Investigation 2 | . 2 Extermination . | . . Reinforcement 1 | . 1 Assault . | . . Garrison . | . . Intercept . | . . Searches Triggered . | . . Construction Impeded . | . . Haulers Reinforced . | . . Active Scanning Responses . | . . Cargo Convoy Interrupts . | . . Stealth | -11 -10 --------- Run | Yrd Mat Distress Signals 1 | . 1 Communications Jammed . | . . Distress Signals . | . . Times Spotted 18 | . 18 Peak Tracking Total 5 | . 5 Tactical Retreats . | . . Traps | -11 -10 ------- Run | Yrd Mat Traps Triggered . | . . Indirectly . | . . Trap Hack Attempts . | . . Triggered . | . . Disarmed . | . . Reprogrammed . | . . Reused . | . . Traps Extracted . | . . Installed . | . . Triggered . | . . Machines | -11 -10 ---------- Run | Yrd Mat Machines Disabled 1 | . 1 Max in Single Turn 1 | . 1 Machines Repaired . | . . Machines Dismantled . | . . Machines Sabotaged . | . . Overloaded Fab Kills . | . . Hacking | -11 -10 --------- Run | Yrd Mat Machines Accessed 4 | . 4 Terminals 4 | . 4 Fabricators . | . . Repair Stations . | . . Recycling Units . | . . Scanalyzers . | . . Garrison Access . | . . Total Hacks 15 | . 15 Successful 10 | . 10 Failed 5 | . 5 Catastrophic . | . . Database Lockouts . | . . Manual . | . . Terminals 15 | . 15 Fabricators . | . . Repair Stations . | . . Recycling Units . | . . Scanalyzers . | . . Garrison Access . | . . Terminal Hacks 10 | . 10 Record 4 | . 4 Prototype ID Bank 1 | . 1 Branch Access Points 1 | . 1 Locate Traps 1 | . 1 Recall Reinforcements 1 | . 1 Hauler Manifests 1 | . 1 Zone Layout 1 | . 1 Fabricator Hacks . | . . Repair Station Hacks . | . . Recycling Unit Hacks . | . . Scanalyzer . | . . Garrison Access Hacks . | . . Unauthorized Hacks . | . . Terminals . | . . Fabricators . | . . Repair Stations . | . . Recycling Units . | . . Scanalyzers . | . . Garrison Access . | . . Data Cores Recovered . | . . Used . | . . Hacking Detections 4 | . 4 Full Trace Events 4 | . 4 Feedback Events . | . . Feedback Blocked . | . . Robot Schematics Acquired . | . . Robots Built . | . . Authchips . | . . Time . | . . Total Robot Build Rating . | . . Part Schematics Acquired . | . . Parts Built . | . . Authchips . | . . Time . | . . Total Part Build Rating . | . . Part Studies Acquired . | . . Parts Repaired . | . . Time . | . . Parts Recycled . | . . Recycled Matter . | . . Retrieved Matter . | . . Retrieved Components . | . . Parts Scanalyzed . | . . Part Schematics Acquired . | . . Parts Damaged . | . . Bothacking | -11 -10 ------------ Run | Yrd Mat Used RIF Installer . | . . Robots Hacked . | . . Non-combat . | . . Combat . | . . Robot Hacks Applied . | . . Relay Couplers Released . | . . Fabnet Peak Effective % . | . . Robots Rewired . | . . Allies Hacked . | . . Hacks Repelled . | . . Allies | -11 -10 -------- Run | Yrd Mat Total Allies . | . . Largest Group . | . . Highest-Rated Group . | . . Highest-Rated Ally . | . . Total Orders . | . . Ally Attacks . | . . Total Damage . | . . Kills . | . . Allies Corrupted . | . . Allies Melted . | . . Intel | -11 -10 ------- Run | Yrd Mat Active Infowar (turns) 598 | 194 404 Terrain 338 | 15 323 Seismic 496 | 194 302 Robot Analysis Total . | . . Derelict Logs Recovered . | . . Drone Launches . | . . Drone Recoveries . | . . Exploration | -11 -10 ------------- Run | Yrd Mat Turns Passed 929 | 286 643 Spaces Moved 381 | 125 256 Core 24 | 13 11 Treads 185 | 112 73 Legs . | . . Wheels 172 | . 172 Hover . | . . Flight . | . . Fastest Speed 50 | 50 100 Average Speed 130 | 148 121 Slowest Speed 250 | 160 250 Overloaded Moves . | . . Propulsion Burnouts . | . . Robots Hopped . | . . Potential Cave-ins . | . . Cave-ins Triggered . | . . Exploration Rate (%) 21 | 6 37 Regions Visited 1 Branch Regions . Pre-discovered Areas . | . . Known Exits Taken . | . . Unknown Exits Taken 1 | 1 . Scrap Searched . | . . Spaces Dug . | . . Terrain Destroyed 16 | 10 6 Melee . | . . Projectile . | . . AOE 16 | 10 6 Terrain Rammed . | . . Walls Destroyed . | . . Machines Disabled . | . . Actions | -11 -10 --------- Run | Yrd Mat Total 619 | 193 426 Wait 52 | 16 36 Move 380 | 124 256 Hop . | . . Pick Up 15 | 12 3 Fast Attach 9 | 1 8 Attach 11 | 7 4 Detach 1 | . 1 Swap 2 | . 2 Drop 10 | 1 9 Fire 134 | 32 102 Melee . | . . Ram . | . . Kick . | . . Crush 5 | . 5 Escape Stasis . | . . Rewire . | . . Trap . | . . Miscellaneous . | . . Route ------- -11/Scrapyard -10/Materials (discovered 3 exits: [*Mat] / Min x2) History --------- Turn | Location | Event 8 | -11/Scrapyard | Discovered new exit (range 15) 287 | -11/Scrapyard | Entered Materials 312 | -10/Materials | Build established: Mutant 546 | -10/Materials | Core integrity fell below 50% 582 | -10/Materials | Core integrity fell below 20% 666 | -10/Materials | Discovered new exit (range 16) 903 | -10/Materials | Identified exit to Mines 930 | -10/Materials | Destroyed by G-34 Mercenary with Small Laser Last Messages --------------- a Terminal. Any hack can be entered via the Manual option at the bottom, simply start typing and use autocomplete if desired (Up/Down/Tab/Enter). So-called indirect hacking has a lower chance of success, and is described in more detail in the manual. >>Access(Branch) Found 2 branch access points: (67,12) Mines (11,14) Mines Map updated. >>Manifests Retrieving manifest data... Found 1 hauler: A-02 Transporter 3x Mining Claw ALERT: Suspicious activity at Terminal M007. Dispatching Investigation squad. Extracted 20 matter. Lgt. Nuclear Core destroyed. Map ----- +----------------------------------------------------+ | | | | | | | | | | | | | | | | | | | | | | | ??????????????????????????????????????? | | ??????????????#####???????????????????? | | ?????????????##"T"#####???????????????? | | ?????????????# #???????????????? | | ?????????????# #???????????????? | | ?????????????# #???????????????? | | ?????????????# !! !#???????????????? | | ?????????????# ! #???????????????? | | ?????????????# #???????????????? | | ?????????????# ####????????????? | | ?????????????# # #????????????? | | ?????????????# !!# #????????????? | | ?????????????#######+## #?????>??????? | | ?????????????????# ###??????????? | | ?????????????????# @ +??????????? | | ?????????????????# ##### #??????????? | | ?????????????????# #???# #??????????? | | ????????????###### #???# ?????????? | | ????????????# #???# ????????? | | ????????????# #???# ??????? | | ????????????# ###???# ?????? | | ????????????# #?????# ######????? | | ????????????# #?????#u g#?????????? | | ????????????# #?????? #?????????? | | ????????????# #?????? g #?????????? | | ????????????# #?????? #?????????? | | ????????????# #?????? #?????????? | | ????????????# #?????? #?????????? | | ????????????# #?????? #?????????? | | ????????????# ####### #?????????? | | ????????????# = ###???????? | | ????????????# ??????? | | ??????????? +